Cogmind - Beta 13 @@@ ROGUE MODE // 2024.04.09 @ 21:12:07 Player: desiring-machine Result: Destroyed by C-17 Slicer with Blade Saw Performance ------------- Evolutions (2) 1000 Regions Visited (5) 1000 Robots Destroyed (43) 215 Value Destroyed (1148) 1148 Prototype IDs (7) 140 Alien Tech Used (0) 0 Bonus (300) 300 TOTAL SCORE: 3803 Bonus ------- Aligned with FarCom 300 Cogmind --------- Core Integrity 0/550 Matter 262/300 Energy 91/100 System Corruption 6% Temperature Cool (0) Movement Flying (115) Ox1 Location -8/Materials Parts ------- > --- POWER (1) -------- (None) > --- PROPULSION (4) --- Cesium-ion Thruster > --- UTILITY (3) ------ (None) > --- WEAPON (3) ------- Flak Cannon > --- INVENTORY (5) ---- Light Ion Engine Peak State ------------ > --- POWER ------------ Light Nuclear Core > --- PROPULSION ------- Aluminum Leg Aluminum Leg Aluminum Leg Aluminum Leg > --- UTILITY ---------- Small Storage Unit Experimental Sensor Array Supersonic Drone Bay > --- WEAPON ----------- Particle Gun High-powered Shotgun Assault Cannon > --- INVENTORY -------- Light Nuclear Core Light Nuclear Core Large Matter Pod EM Pulse Gun Grenade Launcher Grenade Launcher [Rating: 34] Favorites ----------- Power Light Nuclear Core Engine Ion Engine Power Core Light Nuclear Core Propulsion Aluminum Leg Leg Aluminum Leg Wheel Compact Wheel Flight Unit Cesium-ion Thruster Utility Small Storage Unit Device Supersonic Drone Bay Storage Small Storage Unit Processor Targeting Computer Hackware Hacking Suite Protection Weapon Shielding Weapon Gauss Rifle Energy Gun Particle Gun Ballistic Gun Gauss Rifle Ballistic Cannon Assault Cannon Launcher Grenade Launcher Special Weapon Field Lobotomy Kit Build | -11 -10 -10 -10 -9 -8 ------- Run | Yrd Mat Min Exi Min Mat Slots Evolved 4 | . . . . . 4 Power . | . . . . . . Propulsion 2 | . . . . . 2 Utility 1 | . . . . . 1 Weapon 1 | . . . . . 1 Parts Attached 59 | 6 5 3 4 . 41 Power 6 | 1 1 1 . . 3 Engine 2 | 1 1 . . . . Core 4 | . . 1 . . 3 Reactor . | . . . . . . Propulsion 20 | 2 . 2 . . 16 Treads . | . . . . . . Leg 8 | . . 2 . . 6 Wheel 2 | 2 . . . . . Hover . | . . . . . . Flight 10 | . . . . . 10 Utility 11 | 1 1 . 2 . 7 Device 5 | . . . 2 . 3 Storage 2 | 1 . . . . 1 Processor 2 | . . . . . 2 Hackware 1 | . . . . . 1 Protection 1 | . 1 . . . . Artifact . | . . . . . . Weapon 22 | 2 3 . 2 . 15 Energy Gun 9 | 1 2 . . . 6 Energy Cannon . | . . . . . . Ballistic Gun 4 | 1 . . . . 3 Ballistic Cannon 3 | . . . . . 3 Launcher 5 | . 1 . 1 . 3 Special Weapon 1 | . . . 1 . . Impact Weapon . | . . . . . . Slashing Weapon . | . . . . . . Piercing Weapon . | . . . . . . Special Melee Weapon . | . . . . . . Unidentified Prototypes 3 | . . . 3 . . Corrupted Parts 1 | . . . . . 1 System Corruption 1 | . . . . . 1 Parts Lost 22 | . 2 1 . . 19 Power 4 | . 1 1 . . 2 Propulsion 6 | . . . . . 6 Utility 5 | . . . . . 5 Weapon 7 | . 1 . . . 6 Highest Loss Streak 5 | . 1 1 . . 5 To Critical Strikes . | . . . . . . Average Slot Usage (%) 93 | . 91 98 100 100 90 Engine 1 | . 13 . . . . Core 9 | . . 11 14 14 8 Leg 21 | . . 21 28 28 22 Wheel 3 | . 28 6 . . . Flight 6 | . . . . . 10 Device 3 | . . . 8 14 3 Storage 9 | . 14 14 14 14 6 Processor 6 | . . . . . 11 Hackware 1 | . . . . . 2 Protection 3 | . 7 14 5 . . Energy Gun 10 | . 13 14 14 14 7 Ballistic Gun 7 | . 9 . . . 11 Ballistic Cannon 3 | . . . . . 6 Launcher 5 | . 4 14 14 14 . Naked Turns . | . . . . . . Heaviest Build 34 | 13 17 17 17 17 34 Greatest Support 54 | 32 32 32 20 20 54 Greatest Overweight (x) 7 | 4 . . . . 7 Average Overweight (x) . | . . . . . . Largest Inventory Capacity 8 | 8 8 8 8 8 8 Average Capacity 7 | 6 8 8 8 8 7 Most Carried 8 | 5 8 8 8 8 8 Average Carried 6 | 3 7 7 7 8 6 Final Capacity 8 | 8 8 8 8 8 5 Final Carried 8 | 4 8 8 8 8 1 Class Distribution -------------------- 43% | Mutant 26% | Scavenger-Skirmisher 10% | Scavenger-Gunner 7% | Scavenger-Sprinter 5% | Scavenger-Mutant 4% | Sprinter Dominant Class ---------------- Mutant | -10/Materials Mutant | -10/Mines Mutant | -10/Exiles Mutant | -9/Mines Scavenger-Skirmisher | -8/Materials Resources | -11 -10 -10 -10 -9 -8 ----------- Run | Yrd Mat Min Exi Min Mat Matter Collected 1416 | 190 226 156 . 19 825 Remotely . | . . . . . . Salvage Created 1389 | . 226 151 . 19 993 Parts 88 | . 13 12 . 4 59 Haulers Intercepted . | . . . . . . Recyclers Shooed 4 | . . . . . 4 Parts Field Recycled 6 | . . . . . 6 Retrieved Matter 56 | . . . . . 56 Parts Self-Destructed . | . . . . . . Prevented . | . . . . . . Kills | -11 -10 -10 -10 -9 -8 ------- Run | Yrd Mat Min Exi Min Mat Combat Hostiles Destroyed 30 | . 5 7 . 3 15 Guns 19 | . 5 5 . . 9 Cannons 5 | . . . . . 5 AOE 6 | . . 2 . 3 1 Classes Destroyed 11 | . 1 2 . . 8 Worker 4 | . . . . . 4 Builder 1 | . . . . . 1 Tunneler 1 | . . 1 . . . Recycler 4 | . . . . . 4 Operator 1 | . . . . . 1 Watcher 2 | . . . . . 2 Swarmer 9 | . . 3 . 3 3 Cutter 1 | . . . . . 1 Grunt 15 | . 5 4 . . 6 Sentry 4 | . . . . . 4 Hunter 1 | . . . . . 1 Best Kill Streak 5 | . 3 3 . 3 5 Combat Bots Only 3 | . 3 3 . 3 3 Max Kills in Single Turn 3 | . 1 2 . 3 2 Gunslinging . | . . . . . . Exploded 3 | . . 1 . 3 1 Melee . | . . . . . . Uniques/NPCs Destroyed . | . . . . . . Combat | -11 -10 -10 -10 -9 -8 -------- Run | Yrd Mat Min Exi Min Mat Hostile Shots Fired 212 | . 43 24 . . 145 Missed 69 | . 14 9 . . 46 Damage Taken 2880 | . 366 172 . . 2342 Core 635 | . 55 26 . . 554 Absorbed by Shields . | . . . . . . Redirected to Shielding 31 | . 5 26 . . . Core Remaining (%) 83 | 100 . . . 67 . Volleys Fired 104 | . 24 12 . 1 67 Largest 3 | . 2 2 . 2 3 Hottest 159 | . 60 95 . 95 159 Shots Fired 224 | . 43 18 . 2 161 Gun 182 | . 43 12 . 1 126 Cannon 27 | . . . . . 27 Launcher 15 | . . 6 . 1 8 Special . | . . . . . . Kinetic 123 | . 24 . . . 99 Thermal 69 | . 19 12 . 1 37 Explosive 15 | . . 6 . 1 8 Electromagnetic 17 | . . . . . 17 Robot Hit Streak 13 | . 10 8 . . 13 Robot Miss Streak 7 | . 2 2 . . 7 Penetration Max 1 | . . . . . 1 Secondary Targets 2 | . 1 . . . 1 Max Gunslinging Chain 1 | . 1 . . . 1 Shots Hit Robots 142 | . 31 12 . . 99 Core Hits 82 | . 12 13 . 3 54 Critical Kills . | . . . . . . Critical Parts Destroyed . | . . . . . . Critical Strikes 1 | . . . . . 1 Burn 1 | . . . . . 1 Melee Attacks . | . . . . . . Impact . | . . . . . . Slashing . | . . . . . . Piercing . | . . . . . . Sneak Attacks . | . . . . . . Combat Hostiles . | . . . . . . Follow-up Attacks . | . . . . . . Damage Inflicted 3543 | . 388 554 . 65 2536 Guns 2270 | . 388 145 . . 1737 Cannons 368 | . . . . . 368 Explosions 883 | . . 409 . 65 409 Melee . | . . . . . . Ramming 22 | . . . . . 22 Kinetic 1701 | . 254 . . . 1447 Thermal 905 | . 134 145 . . 626 Explosive 671 | . . 409 . 65 197 Electromagnetic 244 | . . . . . 244 Impact . | . . . . . . Slashing . | . . . . . . Piercing . | . . . . . . Highest Corruption 6 | . . . . . 6 Average Corruption 5 | . . . . . 5 Corruption Purged . | . . . . . . Corruption Blocked . | . . . . . . Effects 30 | . . . . . 30 Message Errors 5 | . . . . . 5 Matter Fused 6 | . . . . . 6 Heat Flow Errors 7 | . . . . . 7 Energy Discharges 3 | . . . . . 3 Data Loss (minor) 3 | . . . . . 3 Data Loss (major) 2 | . . . . . 2 Misfires 3 | . . . . . 3 Weapon Failures 1 | . . . . . 1 Overload Shots . | . . . . . . Overflow Damage 10 | . . 5 . . 5 Projectiles 5 | . . . . . 5 Explosions 5 | . . 5 . . . Melee . | . . . . . . Knockbacks 7 | . . . . . 7 Impact . | . . . . . . Kinetic 6 | . . . . . 6 Secondary 1 | . . . . . 1 Self-Inflicted Damage 185 | . . 24 . . 161 Shots 5 | . . 1 . . 4 Rammed 1 | . . . . . 1 Targets Rammed 4 | . . . . . 4 Kicked 3 | . . . . . 3 Crushed . | . . . . . . Highest Temperature 404 | . 100 137 . 39 404 Average Temperature 95 | . 32 64 . 20 108 Received Heat Transfer 699 | . 207 51 . . 441 Effects 4 | . . . . . 4 Shutdowns 1 | . . . . . 1 Energy Bleed 2 | . . . . . 2 Damage (minor) 1 | . . . . . 1 Siege Activations . | . . . . . . Robots Corrupted . | . . . . . . Combat Hostiles . | . . . . . . Parts Fried . | . . . . . . Impact Corruptions . | . . . . . . Robots Melted . | . . . . . . Combat Hostiles . | . . . . . . Parts Melted . | . . . . . . Heat Transferred 1845 | . 300 333 . . 1212 Parts Sabotaged . | . . . . . . Parts Stolen . | . . . . . . Parts Stripped . | . . . . . . Power Chain Reactions 3 | . . . . . 3 Alert | -11 -10 -10 -10 -9 -8 ------- Run | Yrd Mat Min Exi Min Mat Peak Influence 254 | . 125 254 . 78 247 Initial 48 | . . 48 . . 29 Average 91 | . 72 148 . 9 88 Maximum Alert Level 1 | . . 1 . . 1 Low Security (%) 92 | 100 100 74 . 100 95 Level 1 7 | . . 25 . . 4 Level 2 . | . . . . . . Level 3 . | . . . . . . Level 4 . | . . . . . . Level 5 . | . . . . . . High Security . | . . . . . . Max Security . | . . . . . . Squads Dispatched 4 | . 1 . . . 3 Investigation . | . . . . . . Extermination . | . . . . . . Reinforcement 4 | . 1 . . . 3 Assault . | . . . . . . Garrison . | . . . . . . Intercept . | . . . . . . Searches Triggered . | . . . . . . Construction Impeded 1 | . . . . . 1 Haulers Reinforced . | . . . . . . Active Scanning Responses . | . . . . . . Cargo Convoy Interrupts . | . . . . . . Stealth | -11 -10 -10 -10 -9 -8 --------- Run | Yrd Mat Min Exi Min Mat Distress Signals 5 | . 2 . . . 3 Communications Jammed . | . . . . . . Distress Signals . | . . . . . . Times Spotted 51 | . 6 7 . . 38 Peak Tracking Total 7 | . 3 3 . . 7 Tactical Retreats 9 | . . . . . 9 Traps | -11 -10 -10 -10 -9 -8 ------- Run | Yrd Mat Min Exi Min Mat Traps Triggered . | . . . . . . Indirectly . | . . . . . . Trap Hack Attempts . | . . . . . . Triggered . | . . . . . . Disarmed . | . . . . . . Reprogrammed . | . . . . . . Reused . | . . . . . . Traps Extracted . | . . . . . . Installed . | . . . . . . Triggered . | . . . . . . Machines | -11 -10 -10 -10 -9 -8 ---------- Run | Yrd Mat Min Exi Min Mat Machines Disabled 6 | . . 1 . . 5 Max in Single Turn 1 | . . 1 . . 1 Machines Repaired . | . . . . . . Machines Dismantled . | . . . . . . Machines Sabotaged . | . . . . . . Overloaded Fab Kills . | . . . . . . Hacking | -11 -10 -10 -10 -9 -8 --------- Run | Yrd Mat Min Exi Min Mat Machines Accessed 4 | . . . . . 4 Terminals 4 | . . . . . 4 Fabricators . | . . . . . . Repair Stations . | . . . . . . Recycling Units . | . . . . . . Scanalyzers . | . . . . . . Garrison Access . | . . . . . . Total Hacks 9 | . . . . . 9 Successful 7 | . . . . . 7 Failed 2 | . . . . . 2 Catastrophic . | . . . . . . Database Lockouts . | . . . . . . Manual 2 | . . . 2 . . Terminals 9 | . . . . . 9 Fabricators . | . . . . . . Repair Stations . | . . . . . . Recycling Units . | . . . . . . Scanalyzers . | . . . . . . Garrison Access . | . . . . . . Terminal Hacks 7 | . . . . . 7 Record 1 | . . . . . 1 Prototype ID Bank 2 | . . . . . 2 Alert Level 1 | . . . . . 1 Unreport Threat 2 | . . . . . 2 Locate Traps 1 | . . . . . 1 Fabricator Hacks . | . . . . . . Repair Station Hacks . | . . . . . . Recycling Unit Hacks . | . . . . . . Scanalyzer . | . . . . . . Garrison Access Hacks . | . . . . . . Unauthorized Hacks . | . . . . . . Terminals . | . . . . . . Fabricators . | . . . . . . Repair Stations . | . . . . . . Recycling Units . | . . . . . . Scanalyzers . | . . . . . . Garrison Access . | . . . . . . Data Cores Recovered 1 | . . . . . 1 Used 1 | . . . . . 1 Hacking Detections 2 | . . . . . 2 Full Trace Events . | . . . . . . Feedback Events . | . . . . . . Feedback Blocked . | . . . . . . Robot Schematics Acquired . | . . . . . . Robots Built . | . . . . . . Authchips . | . . . . . . Time . | . . . . . . Total Robot Build Rating . | . . . . . . Part Schematics Acquired . | . . . . . . Parts Built . | . . . . . . Authchips . | . . . . . . Time . | . . . . . . Total Part Build Rating . | . . . . . . Parts Repaired . | . . . . . . Time . | . . . . . . Parts Recycled . | . . . . . . Recycled Matter . | . . . . . . Retrieved Matter . | . . . . . . Retrieved Components . | . . . . . . Parts Scanalyzed . | . . . . . . Part Schematics Acquired . | . . . . . . Parts Damaged . | . . . . . . Bothacking | -11 -10 -10 -10 -9 -8 ------------ Run | Yrd Mat Min Exi Min Mat Used RIF Installer . | . . . . . . Robots Hacked . | . . . . . . Non-combat . | . . . . . . Combat . | . . . . . . Robot Hacks Applied . | . . . . . . Relay Couplers Released . | . . . . . . Fabnet Peak Effective % . | . . . . . . Robots Rewired . | . . . . . . Allies Hacked . | . . . . . . Hacks Repelled . | . . . . . . Allies | -11 -10 -10 -10 -9 -8 -------- Run | Yrd Mat Min Exi Min Mat Total Allies . | . . . . . . Largest Group . | . . . . . . Highest-Rated Group . | . . . . . . Highest-Rated Ally . | . . . . . . Total Orders . | . . . . . . Ally Attacks . | . . . . . . Total Damage . | . . . . . . Kills . | . . . . . . Allies Corrupted . | . . . . . . Allies Melted . | . . . . . . Intel | -11 -10 -10 -10 -9 -8 ------- Run | Yrd Mat Min Exi Min Mat Robot Analysis Total . | . . . . . . Derelict Logs Recovered 1 | . . 1 . . . Drone Launches 2 | . . . 1 . 1 Drone Recoveries 1 | . . . . . 1 Exploration | -11 -10 -10 -10 -9 -8 ------------- Run | Yrd Mat Min Exi Min Mat Turns Passed 3371 | 69 302 545 348 147 1960 Spaces Moved 2345 | 53 207 436 227 115 1307 Core 25 | 23 . . . . 2 Treads . | . . . . . . Legs 1454 | . . 341 227 115 771 Wheels 332 | 30 207 95 . . . Hover . | . . . . . . Flight 534 | . . . . . 534 Fastest Speed 26 | 50 100 100 120 120 26 Average Speed 102 | 100 100 115 120 120 93 Slowest Speed 400 | 250 100 120 120 120 400 Overloaded Moves . | . . . . . . Propulsion Burnouts . | . . . . . . Robots Hopped 10 | . . . . . 10 Cave-ins Triggered 1 | . . . . . 1 Exploration Rate (%) 45 | 4 43 74 67 32 50 Regions Visited 5 Branch Regions 3 Pre-discovered Areas 1 | . . 1 . . . Known Exits Taken . | . . . . . . Unknown Exits Taken 5 | 1 1 1 1 1 . Scrap Searched 1 | . . 1 . . . Spaces Dug 59 | . . . . . 59 Terrain Destroyed 147 | . . 32 . 8 107 Melee . | . . . . . . Projectile 11 | . . . . . 11 AOE 136 | . . 32 . 8 96 Terrain Rammed . | . . . . . . Walls Destroyed . | . . . . . . Machines Disabled . | . . . . . . Actions | -11 -10 -10 -10 -9 -8 --------- Run | Yrd Mat Min Exi Min Mat Total 3117 | 68 261 461 302 122 1903 Wait 520 | . 11 2 66 7 434 Move 2320 | 52 206 435 226 114 1287 Hop 9 | . . . . . 9 Pick Up 64 | 10 11 5 3 . 35 Fast Attach . | . . . . . . Attach 41 | 6 3 1 1 . 30 Detach . | . . . . . . Swap 18 | . 2 2 3 . 11 Drop 35 | . 4 4 3 . 24 Fire 104 | . 24 12 . 1 67 Melee . | . . . . . . Ram 1 | . . . . . 1 Kick 3 | . . . . . 3 Crush . | . . . . . . Escape Stasis 1 | . . . . . 1 Rewire 1 | . . . . . 1 Trap . | . . . . . . Miscellaneous . | . . . . . . Route ------- -11/Scrapyard -10/Materials -10/Mines (discovered 2 exits: [*Mat] / *Exi) -10/Exiles -9/Mines -8/Materials History --------- Turn | Location | Event 11 | -11/Scrapyard | Discovered new exit (range 16) 70 | -11/Scrapyard | Entered Materials 303 | -10/Materials | Discovered new exit (range 6) 316 | -10/Materials | Build established: Mutant 372 | -10/Materials | Entered Mines 586 | -10/Mines | Found a damaged Exp. Sensor Array with a note attached 588 | -10/Mines | Found Prototype Device 621 | -10/Mines | Learned location of Zion (-7) 767 | -10/Mines | Deemed a non-threat by the Exiles lab entrance 769 | -10/Mines | Discovered new exit (range 5) 834 | -10/Mines | Assembled infested the area 843 | -10/Mines | Discovered new exit (range 9) 917 | -10/Mines | Entered Exiles 946 | -10/Exiles | Met 8R-AWN 968 | -10/Exiles | Met EX-HEX 999 | -10/Exiles | Met EX-BIN 1016 | -10/Exiles | Aligned with FarCom system 1017 | -10/Exiles | Given EX-Vault access code 1046 | -10/Exiles | Opened EX-Vault 1053 | -10/Exiles | Identified Exp. Sensor Array 1059 | -10/Exiles | Found Prototype Device 1063 | -10/Exiles | Found Prototype Special Weapon 1064 | -10/Exiles | Identified Field Lobotomy Kit 1071 | -10/Exiles | Identified Supersonic Drone Bay 1172 | -10/Exiles | Warned to stay clear of 0b10 Research branches 1208 | -10/Exiles | Met EX-DEC 1249 | -10/Exiles | Discovered new exit (range 14) 1265 | -10/Exiles | Left Exiles lab with Supersonic Drone Bay 1265 | -10/Exiles | Entered Mines 1265 | -9/Mines | Accompanied by 1 ally 1297 | -9/Mines | Met a Derelict bent on vengeance 1368 | -9/Mines | Discovered new exit (range 8) 1412 | -9/Mines | Entered Materials 1412 | -8/Materials | Accompanied by 1 ally 1412 | -8/Materials | Evolved 4 slots: Propulsion x2, Utility x1, Weapon x1 1703 | -8/Materials | Build established: Scavenger-Skirmisher 2343 | -8/Materials | Crushed by falling debris 2722 | -8/Materials | Build established: Scavenger-Gunner 3125 | -8/Materials | Lost 4 parts (1p1n2w) 3233 | -8/Materials | Core integrity fell below 50% 3286 | -8/Materials | Lost 5 parts (1n3u1w) 3350 | -8/Materials | Core integrity fell below 20% 3372 | -8/Materials | Destroyed by C-17 Slicer with Blade Saw Last Messages --------------- 03341_ C-17 Slicer suffers critical hit (Burn). 03341_ Particle Gun severed. 03342_ K-01 Serf collects debris. 03342_ R-06 Scavenger collects Gauss Rifle. 03343_ Penetrated by Slug. 03343_ Particle Gun destroyed. 03346_ K-01 Serf collects debris. 03348_ Knocked back. 03349_ Nuclear Core destroyed. 03349_ Knocked back. 03363_ Cesium-ion Thruster destroyed. 03363_ Acquired Flak Cannon. 03363_ Cesium-ion Thruster destroyed. 03365_ C-17 Slicer knocked back. 03365_ C-17 Slicer destroyed. 03366_ System corrupted: Substantial component data lost. 03366_ Flak Cannon severed. 03367_ Acquired Flak Cannon. 03369_ C-17 Slicer knocked back. Map ----- +----------------------------------------------------+ | ?????????????????# #########????#[[ ! | | ?????????????????# # ######[ | | ?????????######### + + + ! | | ?????????# ## # ######== | | ?????????# """ ## ##########???# =[ | | ?????????# """ # ^ #######+# | | ?????????# """ + ^ ^ | | ?????????# """ # """ "##/###### | | ?????????# # ^^^""" T# #?# | | ????????######### """ "# ] ! #?? | | ????????# ! = ## [ #==! #?? | | ????????# #T # ! !#?? | | ????????#!!! ## ! ######## | | ????##??#!! / + | | ????" #?#!! # #"T"##"T ########## | | #?"Y" #?# = # #"""#######????????? | | # #?#+###### #####??????????????? | | # """ #?# # # ###########????????? | | # """ #?# # # ## "T" #????????? | | # """ ### # # ## #????????? | | # # # + ## #????????? | | # # # / # ## [ !#????????? | | # "" # + % # ## ![ #????????? | | # """ + # c/ # + ! = #????????? | | # " #c]/ # ## #????????? | | # # # @/ # ## ! #????????? | | ####### ### ## ## = #??????### | | ????## ##### ######/########### = | | ????## = | | ????## ######## [ | | ????## #??????# | | ????## ###+######+########??# | | ????### ## #### | | ????### ## #### ### | | ?????##[= # ## + | | ?????# = # """ ## ####+### | | ?????# * # """"" ## # # | | ?????# # """"" ## # + | | ?????## = ## """"" ## # """ # | | ?????# # """???# # "Y # | | ?????# ! # ???# # """ + | | ?????# # ??########## # | | ?????# # ?????????## ##### | | ?????# #######??????????# # ### | | ?????## ########?????????## ## | | ??????# # ! #?????????# ####### | | ??????# # #?????????# # # | | ??????# + """ #?????????# # | | ####### # """ #?????????# # | | # # # """ #?????????# # # | +----------------------------------------------------+ Best States ------------- Heat Dissipation 31 Energy Generation 14 Energy Capacity 250 Matter Stores 440 Matter Capacity 450 Sight Range 16 Robot Scan Range 20 Terrain Scan Density 10 Weapon Shielding 33 Evasion (%) 64 Targeting Accuracy 13 Offensive Hacking 10 Item Schematics ----------------- None Robot Schematics ------------------ None Fabricated ------------ Nothing Alien Tech Used ----------------- None Achievements -------------- Dynamic Key Everything Is Under Control Unlikely Earthworm Challenges ------------ None Game ------ Seed MappingLegLance Manual? 0 Play Time 00:36:27 Cumulative 6.3 hours Start 2024.04.09 @ 20:27:38 End 2024.04.09 @ 21:12:07 Sessions 1 Manual Loads 0 Difficulty Rogue Special Mode None Game No. 11 Rogue 11 Adventurer 0 Explorer 0 Win Type - Total 0 Types 0/0/0/0/0/0/0/0/0 Lore% 9 Gallery% 13 Achievement% 12 Wizard Run 0 Options --------- Layout 1 ASCII 0 Keyboard 0 Movement Numpad Keybinds 0 Fullscreen 1 Font 24/Smallcaps Map View 50x35 Zoom Use 0% Tactical HUD 1 Map Filters NONE Filters NONE Steam 0 RUN: 965927e3-6dbe-4fa1-aacf-53749406a7a9